Cogmind - Beta 17 @@@ ROGUE MODE // 2026.07.13 @ 17:16:39 Player: Skysub Result: Self-destructed Performance ------------- Evolutions (2) 1000 Regions Visited (5) 1000 Robots Destroyed (2) 10 Value Destroyed (97) 97 Prototype IDs (0) 0 Alien Tech Used (0) 0 Bonus (1170) 1170 TOTAL SCORE: 3277 Bonus ------- Pacifist 470 Entered Garrisons 200 Used RIF Installer 500 Cogmind --------- Core Integrity 450/550 Matter 232/300 Energy 16/140 System Corruption 13% Temperature Cool (0) Movement Core (100) Ox1 Location -8/Materials Parts ------- > --- POWER (1) -------- Light Deuterium Engine > --- PROPULSION (4) --- (None) > --- UTILITY (4) ------ Weight Redist. System Hardlight Generator > --- WEAPON (2) ------- (None) > --- INVENTORY (5) ---- Light Ion Engine Improved Signal Interpreter Improved Terrain Scan Processor Grenade Launcher Scythe Peak State ------------ > --- POWER ------------ Nuclear Core > --- PROPULSION ------- Improved Hover Unit Improved Hover Unit Improved Hover Unit Improved Hover Unit > --- UTILITY ---------- Advanced Visual Processing Unit Light Armor Plating Light Armor Plating Hardlight Generator > --- WEAPON ----------- Mini Grenade Launcher Mini Grenade Launcher > --- INVENTORY -------- Light Ion Engine Improved Signal Interpreter Improved Terrain Scan Processor Grenade Launcher Scythe [Rating: 24] Favorites ----------- Power Nuclear Core Engine Light Ion Engine Power Core Nuclear Core Propulsion Improved Hover Unit Hover Unit Improved Hover Unit Utility Light Armor Plating Device Hardlight Generator Processor Advanced Visual Processing Unit Protection Light Armor Plating Weapon Mini Grenade Launcher Launcher Mini Grenade Launcher Build | -11 -10 -9 -8 -8 -8 ------- Run | Yrd Mat Mat Mat Gar Mat Slots Evolved 4 | . . 2 2 . . Power . | . . . . . . Propulsion 2 | . . 1 1 . . Utility 2 | . . 1 1 . . Weapon . | . . . . . . Parts Attached 15 | . . 9 3 . 3 Power 3 | . . 1 1 . 1 Engine 2 | . . 1 . . 1 Core 1 | . . . 1 . . Reactor . | . . . . . . Propulsion 4 | . . 3 1 . . Treads . | . . . . . . Leg . | . . . . . . Wheel . | . . . . . . Hover 4 | . . 3 1 . . Flight . | . . . . . . Utility 6 | . . 3 1 . 2 Device 3 | . . . 1 . 2 Storage . | . . . . . . Processor 1 | . . 1 . . . Hackware . | . . . . . . Protection 2 | . . 2 . . . Artifact . | . . . . . . Weapon 2 | . . 2 . . . Energy Gun . | . . . . . . Energy Cannon . | . . . . . . Ballistic Gun . | . . . . . . Ballistic Cannon . | . . . . . . Launcher 2 | . . 2 . . . Special Weapon . | . . . . . . Impact Weapon . | . . . . . . Slashing Weapon . | . . . . . . Piercing Weapon . | . . . . . . Special Melee Weapon . | . . . . . . Unidentified Prototypes . | . . . . . . Parts Lost 11 | . . . . 9 2 Power 1 | . . . . 1 . Propulsion 4 | . . . . 2 2 Utility 4 | . . . . 4 . Weapon 2 | . . . . 2 . Highest Loss Streak 9 | . . . . 9 2 To Critical Strikes . | . . . . . . Average Backups 3 | . 1 3 3 5 5 Power . | . 1 . . 1 1 Propulsion . | . . . . . . Utility 1 | . . 1 1 2 2 Weapon 1 | . . 1 2 2 2 Tool/Special . | . . . . . . Unused Backups 4 | . . . . . 4 Power . | . . . . . . Propulsion . | . . . . . . Utility 2 | . . . . . 2 Weapon 2 | . . . . . 2 Tool/Special . | . . . . . . Average Slot Usage (%) 63 | . . 56 95 93 34 Engine 3 | . . 6 6 . 6 Core 3 | . . . 2 9 . Hover 23 | . . 19 36 33 18 Device 5 | . . . 4 9 10 Processor 4 | . . 3 9 9 . Protection 10 | . . 11 18 16 . Launcher 11 | . . 15 18 16 . Peak Build Rating 24 | . . 16 24 24 13 Average Rating 14 | . . 10 21 22 10 On Entrance 7 | . . . 16 24 5 Avg Prop Armor Cover (%) . | . . . . . . Naked Turns 50 | . 31 19 . . . Heaviest Build 20 | . . 11 20 20 10 Greatest Support 32 | 3 3 24 32 32 22 Greatest Overweight (x) 1 | . . . . . 1 Average Overweight (x) . | . . . . . . Largest Inventory Capacity 5 | 5 5 5 5 5 5 Average Capacity 5 | 5 5 5 5 5 5 Most Carried 5 | 1 3 5 5 5 5 Average Carried 3 | . 1 3 3 5 5 Final Capacity 5 | 5 5 5 5 5 5 Final Carried 5 | 1 3 4 5 5 5 Class Distribution -------------------- 100% | Mutant Dominant Class ---------------- Mutant | -10/Materials Mutant | -9/Materials Mutant | -8/Materials Mutant | -8/Garrison Mutant | -8/Materials Resources | -11 -10 -9 -8 -8 -8 ----------- Run | Yrd Mat Mat Mat Gar Mat Matter Collected 347 | 200 . 30 . 117 . Remotely . | . . . . . . Salvage Created 62 | . . . . 62 . Parts 2 | . . . . 2 . Haulers Intercepted . | . . . . . . Recyclers Shooed . | . . . . . . Parts Field Recycled . | . . . . . . Retrieved Matter . | . . . . . . Parts Self-Destructed . | . . . . . . Prevented . | . . . . . . Parts Restored . | . . . . . . Kills | -11 -10 -9 -8 -8 -8 ------- Run | Yrd Mat Mat Mat Gar Mat Combat Hostiles Destroyed 2 | . . . . 2 . AOE 2 | . . . . 2 . Classes Destroyed 1 | . . . . 1 . Grunt 2 | . . . . 2 . Best Kill Streak 2 | . . . . 2 . Combat Bots Only 2 | . . . . 2 . Max Kills in Single Turn 1 | . . . . 1 . Gunslinging . | . . . . . . Exploded 1 | . . . . 1 . Melee . | . . . . . . Uniques/NPCs Destroyed . | . . . . . . Combat | -11 -10 -9 -8 -8 -8 -------- Run | Yrd Mat Mat Mat Gar Mat Hostile Shots Fired 115 | . 45 22 . 28 20 Missed 45 | . 14 8 . 12 11 Hits 70 | . 31 14 . 16 9 Projectile 70 | . 31 14 . 16 9 Damage Taken 1076 | . 246 188 . 539 103 Core 370 | . 246 24 . 41 59 Absorbed by Shields 92 | . . . . 56 36 Core Remaining (%) 65 | 100 1 94 . . . Volleys Fired 8 | . . . . 8 . Largest 2 | . . . . 2 . Hottest 60 | . . . . 60 . Shots Fired 10 | . . . . 10 . Gun . | . . . . . . Cannon . | . . . . . . Launcher 10 | . . . . 10 . Special . | . . . . . . Kinetic . | . . . . . . Thermal . | . . . . . . Explosive 10 | . . . . 10 . Electromagnetic . | . . . . . . Robot Hit Streak 4 | . . . . 4 . Robot Miss Streak . | . . . . . . Penetration Max . | . . . . . . Secondary Targets . | . . . . . . Shots Hit Robots 4 | . . . . 4 . Core Hits 6 | . . . . 6 . Critical Kills . | . . . . . . Critical Parts Destroyed . | . . . . . . Critical Strikes . | . . . . . . Melee Attacks . | . . . . . . Impact . | . . . . . . Slashing . | . . . . . . Piercing . | . . . . . . Sneak Attacks . | . . . . . . Combat Hostiles . | . . . . . . Follow-up Attacks . | . . . . . . Damage Inflicted 715 | . . . . 715 . Guns . | . . . . . . Cannons . | . . . . . . Explosions 715 | . . . . 715 . Melee . | . . . . . . Ramming . | . . . . . . Kinetic . | . . . . . . Thermal . | . . . . . . Explosive 715 | . . . . 715 . Electromagnetic . | . . . . . . Impact . | . . . . . . Slashing . | . . . . . . Piercing . | . . . . . . Highest Corruption 13 | . . . . 13 13 Average Corruption 13 | . . . . 13 13 Corruption Purged . | . . . . . . Corruption Blocked . | . . . . . . Effects 3 | . . . . . 3 Matter Fused 1 | . . . . . 1 Parts Rejected 1 | . . . . . 1 Misdirections 1 | . . . . . 1 Overload Shots . | . . . . . . Overflow Damage 24 | . . . . 24 . Projectiles . | . . . . . . Explosions 24 | . . . . 24 . Melee . | . . . . . . Knockbacks . | . . . . . . Impact . | . . . . . . Kinetic . | . . . . . . Secondary . | . . . . . . Self-Inflicted Damage 82 | . . . . 82 . Shots 3 | . . . . 3 . Rammed . | . . . . . . Targets Rammed . | . . . . . . Kicked . | . . . . . . Crushed . | . . . . . . Highest Temperature 46 | . . 4 . 46 . Average Temperature 21 | . . 2 . 23 . Received Heat Transfer 159 | . . 63 . 78 18 Siege Activations . | . . . . . . Martial Activations . | . . . . . . Shielding Activations . | . . . . . . Robots Disrupted . | . . . . . . Combat Hostiles . | . . . . . . Robots Corrupted . | . . . . . . Combat Hostiles . | . . . . . . Parts Fried . | . . . . . . Impact Corruptions . | . . . . . . Robots Melted . | . . . . . . Combat Hostiles . | . . . . . . Parts Melted . | . . . . . . Heat Transferred . | . . . . . . Parts Sabotaged . | . . . . . . Parts Stolen . | . . . . . . Parts Stripped . | . . . . . . Power Chain Reactions . | . . . . . . Alert | -11 -10 -9 -8 -8 -8 ------- Run | Yrd Mat Mat Mat Gar Mat Maximum Alert Level . | . . . . . . Low Security (%) 100 | 100 100 100 100 100 100 Level 1 . | . . . . . . Level 2 . | . . . . . . Level 3 . | . . . . . . Level 4 . | . . . . . . Level 5 . | . . . . . . High Security . | . . . . . . Max Security . | . . . . . . Peak Influence 73 | . . 29 39 73 9 Initial 18 | . . . 11 18 9 Average 16 | . . 7 31 31 3 Influence Increases 158 | . . 39 28 91 . Destroy 0b10 Robot/C 40 | . . . . 40 . Destroy Leader 10 | . . . . 10 . Successful Hack 52 | . . 24 28 . . Destroy Structure 26 | . . . . 26 . Partial Spotted 15 | . . 15 . . . Lose Combat Pursuer 15 | . . . . 15 . Influence Decreases 158 | . . 10 28 101 19 Entered New Map 39 | . . . 18 11 10 Time Decay 29 | . . 10 10 . 9 Lost Part 90 | . . . . 90 . Squads Dispatched 4 | . . 3 1 . . Investigation 2 | . . 2 . . . Extermination . | . . . . . . Reinforcement 1 | . . 1 . . . Assault . | . . . . . . Garrison 1 | . . . 1 . . Intercept . | . . . . . . Searches Triggered . | . . . . . . Construction Impeded . | . . . . . . Haulers Reinforced . | . . . . . . Active Scanning Responses . | . . . . . . Cargo Convoy Interrupts . | . . . . . . Stealth | -11 -10 -9 -8 -8 -8 --------- Run | Yrd Mat Mat Mat Gar Mat Distress Signals 1 | . . 1 . . . Communications Jammed . | . . . . . . Distress Signals . | . . . . . . Times Spotted 31 | . 7 8 1 12 3 Peak Tracking Total 9 | . 7 9 1 8 3 Tactical Retreats 1 | . . . . 1 . Traps | -11 -10 -9 -8 -8 -8 ------- Run | Yrd Mat Mat Mat Gar Mat Traps Triggered 3 | . . . . 3 . Indirectly . | . . . . . . Trap Hack Attempts . | . . . . . . Triggered . | . . . . . . Disarmed . | . . . . . . Reprogrammed . | . . . . . . Reused . | . . . . . . Traps Extracted . | . . . . . . Installed . | . . . . . . Triggered . | . . . . . . Machines | -11 -10 -9 -8 -8 -8 ---------- Run | Yrd Mat Mat Mat Gar Mat Machines Disabled . | . . . . . . Max in Single Turn . | . . . . . . Machines Repaired . | . . . . . . Machines Dismantled . | . . . . . . Machines Sabotaged . | . . . . . . Overloaded Fab Kills . | . . . . . . Hacking | -11 -10 -9 -8 -8 -8 --------- Run | Yrd Mat Mat Mat Gar Mat Machines Accessed 4 | . . 2 2 . . Terminals 2 | . . 1 1 . . Fabricators . | . . . . . . Repair Stations . | . . . . . . Recycling Units . | . . . . . . Scanalyzers 1 | . . 1 . . . Garrison Access 1 | . . . 1 . . Total Hacks 14 | . . 8 6 . . Successful 6 | . . 3 3 . . Failed 8 | . . 5 3 . . Catastrophic 1 | . . . 1 . . Database Lockouts . | . . . . . . Manual 5 | . . 3 2 . . Terminals 9 | . . 4 5 . . Fabricators . | . . . . . . Repair Stations . | . . . . . . Recycling Units . | . . . . . . Scanalyzers 4 | . . 4 . . . Garrison Access 1 | . . . 1 . . Terminal Hacks 2 | . . 1 1 . . Terminal Index 1 | . . . 1 . . Zone Layout 1 | . . 1 . . . Fabricator Hacks . | . . . . . . Repair Station Hacks . | . . . . . . Recycling Unit Hacks . | . . . . . . Scanalyzer 2 | . . 2 . . . Retrieve Study 2 | . . 2 . . . Garrison Access Hacks 1 | . . . 1 . . Unlock Access 1 | . . . 1 . . Unauthorized Hacks 1 | . . . 1 . . Terminals 1 | . . . 1 . . Botnet 1 | . . . 1 . . Fabricators . | . . . . . . Repair Stations . | . . . . . . Recycling Units . | . . . . . . Scanalyzers . | . . . . . . Garrison Access . | . . . . . . Data Cores Recovered . | . . . . . . Used . | . . . . . . Hacking Detections 3 | . . 2 1 . . Full Trace Events 3 | . . 2 1 . . Feedback Events . | . . . . . . Feedback Blocked . | . . . . . . Robot Schematics Acquired . | . . . . . . Robots Built . | . . . . . . Authchips . | . . . . . . Time . | . . . . . . Total Robot Build Rating . | . . . . . . Part Schematics Acquired . | . . . . . . Parts Built . | . . . . . . Authchips . | . . . . . . Time . | . . . . . . Total Part Build Rating . | . . . . . . Part Studies Acquired 2 | . . 2 . . . Parts Repaired . | . . . . . . Time . | . . . . . . Parts Recycled . | . . . . . . Recycled Matter . | . . . . . . Retrieved Matter . | . . . . . . Retrieved Components . | . . . . . . Parts Scanalyzed . | . . . . . . Part Schematics Acquired . | . . . . . . Parts Damaged . | . . . . . . Bothacking | -11 -10 -9 -8 -8 -8 ------------ Run | Yrd Mat Mat Mat Gar Mat Used RIF Installer 1 | . . . . 1 . Robots Hacked . | . . . . . . Non-combat . | . . . . . . Combat . | . . . . . . Robot Hacks Applied . | . . . . . . Relay Couplers Released . | . . . . . . Fabnet Peak Effective % . | . . . . . . Robots Rewired . | . . . . . . Allies Hacked . | . . . . . . Hacks Repelled . | . . . . . . Allies | -11 -10 -9 -8 -8 -8 -------- Run | Yrd Mat Mat Mat Gar Mat Total Allies . | . . . . . . Largest Group . | . . . . . . Highest-Rated Group . | . . . . . . Highest-Rated Ally . | . . . . . . Total Orders . | . . . . . . Ally Attacks . | . . . . . . Total Damage . | . . . . . . Kills . | . . . . . . Allies Corrupted . | . . . . . . Allies Melted . | . . . . . . Intel | -11 -10 -9 -8 -8 -8 ------- Run | Yrd Mat Mat Mat Gar Mat Active Infowar (turns) 175 | . . 38 27 110 . Optics 175 | . . 38 27 110 . Robot Analysis Total . | . . . . . . Derelict Logs Recovered . | . . . . . . Drone Launches . | . . . . . . Drone Recoveries . | . . . . . . Exploration | -11 -10 -9 -8 -8 -8 ------------- Run | Yrd Mat Mat Mat Gar Mat Turns Passed 325 | 14 31 92 27 113 48 Spaces Moved 502 | 26 57 146 44 164 65 Core 129 | 26 57 43 . . 3 Treads . | . . . . . . Legs . | . . . . . . Wheels . | . . . . . . Hover 373 | . . 103 44 164 62 Flight . | . . . . . . Fastest Speed 48 | 50 50 50 48 48 56 Average Speed 51 | 50 50 51 48 49 63 Slowest Speed 120 | 50 50 60 48 56 120 Overloaded Moves . | . . . . . . Propulsion Burnouts . | . . . . . . Robots Hopped . | . . . . . . Potential Cave-ins 7 | . . . . 7 . Cave-ins Triggered 1 | . . . . 1 . Exploration Rate (%) 17 | 3 28 22 8 34 11 Regions Visited 5 Branch Regions . Pre-discovered Areas . | . . . . . . Known Exits Taken 1 | . . . 1 . . Unknown Exits Taken 3 | 1 1 1 . . . Scrap Searched . | . . . . . . Spaces Dug 54 | . . . . 54 . Terrain Destroyed 103 | . . . . 103 . Melee . | . . . . . . Projectile . | . . . . . . AOE 103 | . . . . 103 . Terrain Rammed . | . . . . . . Walls Destroyed . | . . . . . . Machines Disabled . | . . . . . . Actions | -11 -10 -9 -8 -8 -8 --------- Run | Yrd Mat Mat Mat Gar Mat Total 545 | 26 58 159 48 185 69 Wait 1 | . . 1 . . . Move 497 | 25 56 145 44 162 65 Hop . | . . . . . . Pick Up 8 | 1 2 4 1 . . Fast Attach 11 | . . 6 1 . 4 Attach 4 | . . 3 1 . . Detach . | . . . . . . Swap 1 | . . . 1 . . Drop . | . . . . . . Fire 8 | . . . . 8 . Melee . | . . . . . . Ram . | . . . . . . Kick . | . . . . . . Crush . | . . . . . . Escape Stasis 15 | . . . . 15 . Rewire . | . . . . . . Trap . | . . . . . . Miscellaneous . | . . . . . . Route ------- -11/Scrapyard -10/Materials -9/Materials -8/Materials -8/Garrison -8/Materials History --------- Turn | Location | Event 7 | -11/Scrapyard | Discovered new exit (range 16) 15 | -11/Scrapyard | Entered Materials 37 | -10/Materials | Discovered new exit (range 16) 38 | -10/Materials | Core integrity fell below 50% 41 | -10/Materials | Core integrity fell below 20% 46 | -10/Materials | Entered another Materials area 46 | -9/Materials | Evolved 2 slots: Propulsion x1, Utility x1 133 | -9/Materials | Discovered new exit (range 11) 138 | -9/Materials | Entered another Materials area 138 | -8/Materials | Evolved 2 slots: Propulsion x1, Utility x1 153 | -8/Materials | Garrison activated, responded to threat 165 | -8/Materials | Identified exit to Garrison 165 | -8/Materials | Entered Garrison 203 | -8/Garrison | Triggered checkpoint 219 | -8/Garrison | Installed Relay Interface Framework 237 | -8/Garrison | Triggered checkpoint 239 | -8/Garrison | Triggered checkpoint 261 | -8/Garrison | Triggered checkpoint 275 | -8/Garrison | Crushed by falling debris 276 | -8/Garrison | System corruption reached 10% 276 | -8/Garrison | Discovered new exit (range 5) 278 | -8/Garrison | Entered Materials 306 | -8/Materials | Lost 9 parts (1p2n4u2w) 326 | -8/Materials | Self-destructed Last Messages --------------- 00275_ System corrupted by crushing effect (+5). 00275_ Hardlight Generator destroyed. 00275_ System corrupted by crushing effect (+4). 00276_ EXIT=FOUND 00278_ Attempting to access garrison exit controls... RIF authorized. LOCATION=UNKNOWN GOAL=ESCAPE 00285_ Acquired Lgt. Deuterium Engine. 00286_ System corrupted: Matter fused (-10). 00287_ Acquired Weight Redist. System. 00292_ Acquired Hardlight Generator. 00297_ K-01 Serf collects debris. 00307_ System corrupted: Imp. Hover Unit+ rejected. 00307_ Acquired Imp. Hover Unit+. 00320_ Imp. Hover Unit+ destroyed. 00323_ Slug penetrates Wall. 00323_ K-01 Serf collects debris. Map ----- +----------------------------------------------------+ | ????????????????# ?# #?????? | | ????????????????######?# #?????? | | ???????????????????????# #?????? | | ???????????????????????# #?????? | | ???????????????????????# #?????? | | ???????????????????????# #?????? | | ???????????????????????# #?????? | | ??????????????????????## ##????? | | ??????????????????????# #????? | | ??????????????????????# #????? | | ??????????????????????# Y #????? | | ??????????????????????# #????? | | ??????????????????????# #????? | | ??????????????????????### #######? | | ????????????????????????# # """ # | | ????????????????????????+ + """ # | | ????????????????????????# # """ # | | ????????????????????????# # # | | ????????????????????????# #? # | | ????????????????????????# #? # | | ????????????????????????# #??##### | | ??????????????# ######### #??????? | | ??????????????# #??????? | | ??????????????#h #??????? | | ??????????????# #??????? | | ??????????????# @#??????? | | ??????????????# #??????? | | ??????????????+ +??????? | | ??????????????# ## k # #??????? | | ??????????????#??# # #??????? | | ?????????????????#! !# #??????? | | ?????????????????##!!!!## #??????? | | ??????????????????#####?# #??????? | | ????????????????????????# #??????? | | ????????????????????????? ???????? | | ????????????????????????? ???????? | | ????????????????????????? ???????? | | ????????????????????????? ???????? | | ????????????????????????? ???????? | | ????????????????????????? ???????? | | ????????????????????????? ???????? | | ?????????????????????????????????? | | ?????????????????????????????????? | | ?????????????????????????????????? | | ?????????????????????????????????? | | ?????????????????????????????????? | | ?????????????????????????????????? | | ?????????????????????????????????? | | ?????????????????????????????????? | | ?????????????????????????????????? | +----------------------------------------------------+ Best States ------------- Heat Dissipation 31 Energy Generation 14 Energy Capacity 240 Matter Stores 300 Matter Capacity 300 Sight Range 20 Terrain Scan Density 10 Additional Mass Support 6 Armor Coverage 300 Evasion (%) 55 Item Schematics ----------------- None Robot Schematics ------------------ None Fabricated ------------ Nothing Repaired ---------- Nothing Studied --------- Imp. Hover Unit | -9/Materials | Hacked Lgt. Ion Engine | -9/Materials | Hacked Alien Tech Used ----------------- None Achievements -------------- None Challenges ------------ None Game ------ Seed TiamatCentriumFacilitator Manual? 0 Play Time 00:06:49 Cumulative 324.4 hours Start 2026.07.13 @ 17:10:21 End 2026.07.13 @ 17:16:39 Sessions 1 Manual Loads 0 Difficulty Rogue Special Mode None Game No. 397 Rogue 397 Adventurer 0 Explorer 0 Win Type - Total 22 Types 14/0/3/1/1/0/1/1/0/1 Lore% 78 Gallery% 74 Achievement% 65 Wizard Run 0 Options --------- Layout 1 ASCII 0 Keyboard 1 Movement Arrows Keybinds 0 Fullscreen 2 Font 36/Smallcaps Map View 50x40 Zoom Use 0% Tactical HUD 1 Map Filters NONE Filters NONE Steam 1 RUN: 6360a701-256b-48c7-928b-597911b5c7fb